Cogmind - Beta 15 @@@ ROGUE MODE // 2025.10.02 @ 23:51:25 Player: Wotf Result: Destroyed by D-53 Grenadier with Mini Grenade Launcher Performance ------------- Evolutions (1) 500 Regions Visited (3) 600 Robots Destroyed (55) 275 Value Destroyed (1384) 1384 Prototype IDs (2) 40 Alien Tech Used (0) 0 Bonus (0) 0 TOTAL SCORE: 2799 Bonus ------- None Cogmind --------- Core Integrity 0/400 Matter 248/300 Energy 52/250 System Corruption 7% Temperature Cool (0) Movement Walking (330) Ox3 Location -9/Mines Parts ------- > --- POWER (1) -------- Ion Engine > --- PROPULSION (3) --- Aluminum Leg > --- UTILITY (3) ------ Large Storage Unit Seismic Detector > --- WEAPON (2) ------- Flak Cannon Rocket Launcher > --- INVENTORY (15) --- Light Ion Engine Light Nuclear Core Aluminum Leg Improved Aluminum Leg High-capacity Matter Pod (200) High-capacity Matter Pod (200) Tractor Beam Flak Cannon Katana Peak State ------------ > --- POWER ------------ Improved Ion Engine > --- PROPULSION ------- Aluminum Leg Aluminum Leg Aluminum Leg > --- UTILITY ---------- Heat Sink Large Storage Unit Improved Terrain Scan Processor > --- WEAPON ----------- Flak Cannon Flak Cannon > --- INVENTORY -------- Light Nuclear Core Aluminum Leg Aluminum Leg Aluminum Leg Improved Aluminum Leg Large Matter Pod Core Shielding Power Shielding Tractor Beam Particle Gun Flak Cannon Grenade Launcher Rocket Launcher Rocket Launcher Katana [Rating: 18] Favorites ----------- Power Ion Engine Engine Ion Engine Propulsion Aluminum Leg Leg Aluminum Leg Utility Large Storage Unit Device Structural Scanner Storage Large Storage Unit Processor Improved Terrain Scan Processor Weapon Flak Cannon Energy Gun Medium Laser Ballistic Gun Light Assault Rifle Ballistic Cannon Flak Cannon Launcher Grenade Launcher Slashing Weapon Mining Claw Build | -11 -10 -9 -9 ------- Run | Yrd Mat Mat Min Slots Evolved 2 | . . 2 . Power . | . . . . Propulsion 1 | . . 1 . Utility 1 | . . 1 . Weapon . | . . . . Parts Attached 46 | 5 7 27 7 Power 6 | 1 1 4 . Engine 6 | 1 1 4 . Core . | . . . . Reactor . | . . . . Propulsion 12 | 2 1 7 2 Treads . | . . . . Leg 12 | 2 1 7 2 Wheel . | . . . . Hover . | . . . . Flight . | . . . . Utility 11 | 1 1 8 1 Device 7 | . 1 5 1 Storage 3 | 1 . 2 . Processor 1 | . . 1 . Hackware . | . . . . Protection . | . . . . Artifact . | . . . . Weapon 17 | 1 4 8 4 Energy Gun 5 | 1 2 2 . Energy Cannon . | . . . . Ballistic Gun 2 | . 1 1 . Ballistic Cannon 3 | . . 3 . Launcher 6 | . . 2 4 Special Weapon . | . . . . Impact Weapon . | . . . . Slashing Weapon 1 | . 1 . . Piercing Weapon . | . . . . Special Melee Weapon . | . . . . Unidentified Prototypes . | . . . . Parts Lost 19 | . . 9 10 Power 2 | . . 2 . Propulsion 6 | . . 3 3 Utility 3 | . . 1 2 Weapon 8 | . . 3 5 Highest Loss Streak 6 | . . 6 5 To Critical Strikes . | . . . . Average Backups 12 | 3 7 13 14 Power 1 | . 1 1 1 Propulsion 3 | 2 3 3 3 Utility 2 | . 1 3 3 Weapon 5 | . 2 5 6 Tool/Special . | . . . . Unused Backups 19 | . 6 4 9 Power 2 | . . . 2 Propulsion 6 | . 4 . 2 Utility 8 | . 1 3 4 Weapon 3 | . 1 1 1 Tool/Special . | . . . . Average Slot Usage (%) 93 | . 95 91 94 Engine 10 | . 14 8 11 Leg 31 | . 28 32 31 Device 10 | . 10 10 9 Storage 11 | . 14 11 11 Processor 6 | . . 8 9 Energy Gun 5 | . 21 1 . Ballistic Gun 2 | . 4 2 . Ballistic Cannon 12 | . . 15 16 Launcher 1 | . . . 5 Peak Build Rating 18 | 5 8 18 17 Average Rating 13 | 4 7 15 15 On Entrance 7 | . 5 8 17 Naked Turns . | . . . . Heaviest Build 40 | 12 15 40 38 Greatest Support 33 | 20 20 33 30 Greatest Overweight (x) 3 | 3 . 1 1 Average Overweight (x) . | . . . 1 Largest Inventory Capacity 15 | 8 8 15 15 Average Capacity 12 | 7 8 14 15 Most Carried 15 | 7 8 15 15 Average Carried 12 | 3 7 13 14 Final Capacity 15 | 8 8 15 15 Final Carried 15 | 7 8 15 9 Class Distribution -------------------- 64% | Mutant 35% | Scavenger-Mutant Dominant Class ---------------- Mutant | -10/Materials Scavenger-Mutant | -9/Materials Mutant | -9/Mines Resources | -11 -10 -9 -9 ----------- Run | Yrd Mat Mat Min Matter Collected 2339 | 206 273 1582 278 Remotely 85 | . . 85 . Salvage Created 1968 | . 420 1384 164 Parts 111 | . 23 77 11 Haulers Intercepted 2 | . . 2 . Recyclers Shooed 2 | . 1 1 . Parts Field Recycled . | . . . . Retrieved Matter . | . . . . Parts Self-Destructed . | . . . . Prevented . | . . . . Kills | -11 -10 -9 -9 ------- Run | Yrd Mat Mat Min Combat Hostiles Destroyed 56 | . 9 26 21 Guns 21 | . 9 12 . Cannons 13 | . . 10 3 AOE 22 | . . 4 18 Classes Destroyed 10 | . 4 5 1 Worker 2 | . . 1 1 Builder 1 | . . 1 . Hauler 2 | . . 2 . Recycler 6 | . 1 4 1 Watcher 6 | . 1 5 . Swarmer 10 | . 3 4 3 Grunt 18 | . 6 12 . Duelist 2 | . . 2 . Sentry 8 | . . 8 . Assembled 18 | . . . 18 Best Kill Streak 12 | . 5 5 12 Combat Bots Only 12 | . 3 4 12 Max Kills in Single Turn 6 | . 1 3 6 Gunslinging . | . . . . Exploded 6 | . . 3 6 Melee . | . . . . Uniques/NPCs Destroyed . | . . . . Combat | -11 -10 -9 -9 -------- Run | Yrd Mat Mat Min Hostile Shots Fired 247 | . 50 148 49 Missed 66 | . 19 36 11 Hits 181 | . 31 112 38 Melee 15 | . . 7 8 Projectile 166 | . 31 105 30 AOE 8 | . . . 8 Critical Strikes 4 | . . 3 1 Damage Taken 2858 | . 344 1619 895 Core 503 | . 95 263 145 Absorbed by Shields . | . . . . Regen/Repaired (Parts) 59 | . 59 . . Core Remaining (%) 81 | 100 62 . . Volleys Fired 167 | . 45 100 22 Largest 2 | . 2 2 2 Hottest 102 | . 90 102 74 Shots Fired 293 | . 86 172 35 Gun 177 | . 86 91 . Cannon 92 | . . 78 14 Launcher 24 | . . 3 21 Special . | . . . . Kinetic 147 | . 2 131 14 Thermal 99 | . 84 15 . Explosive 19 | . . 3 16 Electromagnetic 28 | . . 23 5 Robot Hit Streak 16 | . 12 16 6 Robot Miss Streak 14 | . 3 14 13 Penetration Max . | . . . . Secondary Targets 2 | . . 2 . Max Gunslinging Chain 1 | . . 1 . Shots Hit Robots 207 | . 53 133 21 Core Hits 178 | . 20 103 55 Critical Kills . | . . . . Critical Parts Destroyed 1 | . . 1 . Critical Strikes 4 | . 1 3 . Burn 1 | . 1 . . Destroy 1 | . . 1 . Corrupt 2 | . . 2 . Melee Attacks . | . . . . Impact . | . . . . Slashing . | . . . . Piercing . | . . . . Sneak Attacks . | . . . . Combat Hostiles . | . . . . Follow-up Attacks . | . . . . Damage Inflicted 3926 | . 631 2122 1173 Guns 1498 | . 631 867 . Cannons 1177 | . . 1079 98 Explosions 1229 | . . 176 1053 Melee . | . . . . Ramming 22 | . . . 22 Kinetic 1643 | . . 1545 98 Thermal 837 | . 631 185 21 Explosive 1108 | . . 176 932 Electromagnetic 316 | . . 216 100 Impact . | . . . . Slashing . | . . . . Piercing . | . . . . Highest Corruption 7 | . 4 1 7 Average Corruption 1 | . 3 1 2 Corruption Purged . | . . . . Corruption Blocked . | . . . . Effects 34 | . 2 23 9 Message Errors 3 | . 1 2 . Matter Fused 6 | . 1 4 1 Heat Flow Errors 9 | . . 7 2 Energy Discharges 7 | . . 5 2 Parts Rejected 2 | . . 1 1 Data Loss (minor) 2 | . . 1 1 Misfires 1 | . . 1 . Alerts 1 | . . 1 . Weapon Failures 3 | . . 1 2 Overload Shots . | . . . . Overflow Damage 31 | . . 7 24 Projectiles . | . . . . Explosions 31 | . . 7 24 Melee . | . . . . Knockbacks 26 | . . 22 4 Impact . | . . . . Kinetic 23 | . . 20 3 Secondary 3 | . . 2 1 Self-Inflicted Damage 127 | . . . 127 Shots 6 | . . . 6 Rammed . | . . . . Targets Rammed 12 | . . . 12 Kicked 12 | . . . 12 Crushed . | . . . . Highest Temperature 271 | . 255 254 271 Average Temperature 73 | . 85 64 71 Received Heat Transfer 722 | . 141 561 20 Effects 2 | . . 2 . Interference 2 | . . 2 . Siege Activations . | . . . . Martial Activations . | . . . . Shielding Activations . | . . . . Robots Disrupted . | . . . . Combat Hostiles . | . . . . Robots Corrupted . | . . . . Combat Hostiles . | . . . . Parts Fried . | . . . . Impact Corruptions . | . . . . Robots Melted . | . . . . Combat Hostiles . | . . . . Parts Melted 6 | . 6 . . Heat Transferred 2229 | . 1735 444 50 Parts Sabotaged . | . . . . Parts Stolen . | . . . . Parts Stripped . | . . . . Power Chain Reactions 1 | . . . 1 Alert | -11 -10 -9 -9 ------- Run | Yrd Mat Mat Min Maximum Alert Level . | . . . . Low Security (%) 100 | 100 100 100 100 Level 1 . | . . . . Level 2 . | . . . . Level 3 . | . . . . Level 4 . | . . . . Level 5 . | . . . . High Security . | . . . . Max Security . | . . . . Peak Influence 142 | . 142 117 94 Initial 34 | . . . 34 Average 54 | . 71 62 16 Influence Increases 1307 | . 307 842 158 Destroy 0b10 Robot/C 760 | . 180 520 60 Destroy 0b10 Robot/NC 85 | . 10 65 10 Destroy Leader 206 | . 42 154 10 Successful Hack 48 | . . 48 . Disable Machine 15 | . . 15 . Destroy Structure 103 | . . 25 78 Lose Combat Pursuer 90 | . 75 15 . Influence Decreases 1307 | . 307 754 246 Entered New Map 54 | . . . 54 Time Decay 1017 | . 307 569 141 Lost Part 141 | . . 90 51 Purge Threat 95 | . . 95 . Squads Dispatched 2 | . 2 . . Investigation . | . . . . Extermination . | . . . . Reinforcement 2 | . 2 . . Assault . | . . . . Garrison . | . . . . Intercept . | . . . . Searches Triggered . | . . . . Construction Impeded . | . . . . Haulers Reinforced . | . . . . Active Scanning Responses . | . . . . Cargo Convoy Interrupts . | . . . . Stealth | -11 -10 -9 -9 --------- Run | Yrd Mat Mat Min Distress Signals 3 | . 2 1 . Communications Jammed . | . . . . Distress Signals . | . . . . Times Spotted 72 | . 15 35 22 Peak Tracking Total 10 | . 3 4 10 Tactical Retreats 7 | . 4 1 2 Traps | -11 -10 -9 -9 ------- Run | Yrd Mat Mat Min Traps Triggered 3 | . 2 1 . Indirectly . | . . . . Trap Hack Attempts . | . . . . Triggered . | . . . . Disarmed . | . . . . Reprogrammed . | . . . . Reused . | . . . . Traps Extracted . | . . . . Installed . | . . . . Triggered . | . . . . Machines | -11 -10 -9 -9 ---------- Run | Yrd Mat Mat Min Machines Disabled 1 | . . 1 . Max in Single Turn 1 | . . 1 . Machines Repaired . | . . . . Machines Dismantled . | . . . . Machines Sabotaged . | . . . . Overloaded Fab Kills . | . . . . Hacking | -11 -10 -9 -9 --------- Run | Yrd Mat Mat Min Machines Accessed 11 | . 2 9 . Terminals 9 | . . 9 . Fabricators . | . . . . Repair Stations 1 | . 1 . . Recycling Units 1 | . 1 . . Scanalyzers . | . . . . Garrison Access . | . . . . Total Hacks 27 | . 5 22 . Successful 12 | . 4 8 . Failed 15 | . 1 14 . Catastrophic 1 | . . 1 . Database Lockouts . | . . . . Manual . | . . . . Terminals 22 | . . 22 . Fabricators . | . . . . Repair Stations 2 | . 2 . . Recycling Units 3 | . 3 . . Scanalyzers . | . . . . Garrison Access . | . . . . Terminal Hacks 8 | . . 8 . Record 1 | . . 1 . Prototype ID Bank 1 | . . 1 . Branch Access Points 1 | . . 1 . Unreport Threat 1 | . . 1 . Locate Traps 2 | . . 2 . Dispatch Records 1 | . . 1 . Zone Layout 1 | . . 1 . Fabricator Hacks . | . . . . Repair Station Hacks 2 | . 2 . . Scan Component 1 | . 1 . . Repair 1 | . 1 . . Recycling Unit Hacks 2 | . 2 . . Report Inventory 1 | . 1 . . Retrieve Components 1 | . 1 . . Scanalyzer . | . . . . Garrison Access Hacks . | . . . . Unauthorized Hacks . | . . . . Terminals . | . . . . Fabricators . | . . . . Repair Stations . | . . . . Recycling Units . | . . . . Scanalyzers . | . . . . Garrison Access . | . . . . Data Cores Recovered . | . . . . Used . | . . . . Hacking Detections 7 | . 1 6 . Full Trace Events . | . . . . Feedback Events . | . . . . Feedback Blocked . | . . . . Robot Schematics Acquired . | . . . . Robots Built . | . . . . Authchips . | . . . . Time . | . . . . Total Robot Build Rating . | . . . . Part Schematics Acquired . | . . . . Parts Built . | . . . . Authchips . | . . . . Time . | . . . . Total Part Build Rating . | . . . . Parts Repaired 1 | . 1 . . Time 26 | . 26 . . Parts Recycled . | . . . . Recycled Matter . | . . . . Retrieved Matter . | . . . . Retrieved Components 9 | . 9 . . Parts Scanalyzed . | . . . . Part Schematics Acquired . | . . . . Parts Damaged . | . . . . Bothacking | -11 -10 -9 -9 ------------ Run | Yrd Mat Mat Min Used RIF Installer . | . . . . Robots Hacked . | . . . . Non-combat . | . . . . Combat . | . . . . Robot Hacks Applied . | . . . . Relay Couplers Released . | . . . . Fabnet Peak Effective % . | . . . . Robots Rewired . | . . . . Allies Hacked . | . . . . Hacks Repelled . | . . . . Allies | -11 -10 -9 -9 -------- Run | Yrd Mat Mat Min Total Allies . | . . . . Largest Group . | . . . . Highest-Rated Group . | . . . . Highest-Rated Ally . | . . . . Total Orders . | . . . . Ally Attacks . | . . . . Total Damage . | . . . . Kills . | . . . . Allies Corrupted . | . . . . Allies Melted . | . . . . Intel | -11 -10 -9 -9 ------- Run | Yrd Mat Mat Min Active Infowar (turns) 2661 | . 602 1446 613 Structural 1927 | . . 1355 572 Seismic 734 | . 602 91 41 Robot Analysis Total . | . . . . Derelict Logs Recovered 1 | . . . 1 Drone Launches . | . . . . Drone Recoveries . | . . . . Exploration | -11 -10 -9 -9 ------------- Run | Yrd Mat Mat Min Turns Passed 3697 | 71 809 2096 721 Spaces Moved 1814 | 50 497 941 326 Core 10 | 10 . . . Treads . | . . . . Legs 1804 | 40 497 941 326 Wheels . | . . . . Hover . | . . . . Flight . | . . . . Fastest Speed 50 | 50 120 120 190 Average Speed 162 | 115 120 178 190 Slowest Speed 200 | 200 120 190 190 Overloaded Moves . | . . . . Propulsion Burnouts . | . . . . Robots Hopped . | . . . . Potential Cave-ins . | . . . . Cave-ins Triggered . | . . . . Exploration Rate (%) 59 | 3 66 83 86 Regions Visited 3 Branch Regions 1 Pre-discovered Areas . | . . . . Known Exits Taken 1 | . . 1 . Unknown Exits Taken 2 | 1 1 . . Scrap Searched 1 | . . . 1 Spaces Dug . | . . . . Terrain Destroyed 144 | . . 29 115 Melee . | . . . . Projectile . | . . . . AOE 144 | . . 29 115 Terrain Rammed . | . . . . Walls Destroyed . | . . . . Machines Disabled . | . . . . Actions | -11 -10 -9 -9 --------- Run | Yrd Mat Mat Min Total 2262 | 61 628 1194 379 Wait 134 | . 56 72 6 Move 1811 | 49 496 940 326 Hop . | . . . . Pick Up 46 | 7 13 24 2 Fast Attach 25 | 5 1 18 1 Attach 20 | . 5 8 7 Detach 5 | . . 5 . Swap 9 | . 1 6 2 Drop 33 | . 11 21 1 Fire 167 | . 45 100 22 Melee . | . . . . Ram . | . . . . Kick 12 | . . . 12 Crush . | . . . . Escape Stasis . | . . . . Rewire . | . . . . Trap . | . . . . Miscellaneous . | . . . . Route ------- -11/Scrapyard -10/Materials (discovered 3 exits: *Mat / [*Min x2]) -9/Materials (discovered 4 exits: [*Mat x2] / *Min / *Sto) -9/Mines History --------- Turn | Location | Event 23 | -11/Scrapyard | Discovered new exit (range 15) 72 | -11/Scrapyard | Entered Materials 300 | -10/Materials | Build established: Mutant 300 | -10/Materials | Discovered new exit (range 8) 374 | -10/Materials | Discovered new exit (range 6) 582 | -10/Materials | Repaired Aluminum Leg 659 | -10/Materials | Discovered new exit (range 16) 881 | -10/Materials | Entered another Materials area 881 | -9/Materials | Evolved 2 slots: Propulsion x1, Utility x1 1032 | -9/Materials | Lost 6 parts (1p2n1u2w) 1363 | -9/Materials | Build established: Scavenger-Mutant 1461 | -9/Materials | Core integrity fell below 50% 1656 | -9/Materials | Discovered new exit (range 16) 1909 | -9/Materials | Discovered new exit (range 13) 2011 | -9/Materials | Build established: Mutant 2052 | -9/Materials | Discovered new exit (range 15) 2236 | -9/Materials | Identified exit to Mines 2236 | -9/Materials | Identified exit to Storage 2489 | -9/Materials | Discovered new exit (range 13) 2762 | -9/Materials | Build established: Scavenger-Mutant 2977 | -9/Materials | Entered Mines 3090 | -9/Mines | Build established: Mutant 3170 | -9/Mines | Learned Materials garrison access intel 3479 | -9/Mines | Assembled infested the area 3484 | -9/Mines | Assisted by a Guerilla fighting off Assembled 3544 | -9/Mines | Destroyed 12 combat bots 3581 | -9/Mines | Core integrity fell below 20% 3604 | -9/Mines | Lost 3 parts (1n2u) 3698 | -9/Mines | Destroyed by D-53 Grenadier with Mini Grenade Launcher Last Messages --------------- 03659_ U-05 Engineer lays Concrete. 03660_ Acquired 10 matter. 03662_ K-01 Serf collects debris. 03667_ The unstable cave ceiling collapses. 03675_ K-01 Serf collects debris. 03677_ as-99344 destroyed. 03679_ K-01 Serf collects debris. 03681_ The unstable cave ceiling collapses. 03681_ Rocket Launcher destroyed. 03681_ Flak Cannon destroyed. 03681_ K-01 Serf destroyed. 03684_ System corrupted: Component data lost. 03688_ System corrupted: EMP Blaster failed to launch. 03688_ Chain reaction triggered in Corrupted Lgt. Ion Engine. 03690_ Aluminum Leg destroyed. 03692_ EMP Blaster destroyed. 03695_ The unstable cave ceiling collapses. 03695_ D-53 Grenadier knocked back. 03697_ The unstable cave ceiling collapses. 03698_ Dropped Hcp. Matter Pod. Map ----- +----------------------------------------------------+ | ########### ## ######? ?????????## #### | | ## ## #### ## ###?????? ??????????## ##?? | | #### ##?????????????????## #### | | ##### ###???????????????### #### | | ## ##### ###### ####??????????????### | | ### ##### ##?### #######??????????## | | ### ##### ##??## #####??????????## | | ?## ##??## ##??????????### | | ?## ###??### ##??????????#### # | | ?### # ####??#### ##???????????###### | | ?#### ## #######?### ###???????????#### | | ??####### ########?### """ #####??????####### | | ######### ## ####### """ #####??#### ## | | ######### ###?### """ ###?## # # # | | ### ##?### %%= #### # # # # * | | ### ###### =* ##### | | ### ######%= ######## | | #### ######## | #######?##[# | | ! ##### ######## != #####????## # | | ! ###### ###??### d ####??????##=## | | ###### ###### ####??????###=#### | | ##### ### #; ##????### ##### | | #### # ##??### ##### | | ######## % % % ##### ###### | | ####### #### #?#### | | ???### # @ ### ##????? | | ??#### # ## # ######?????? | | ##### ### ## ###?????????? | | #### ### ##### # ####??????????? | | ##??## # ####???????????? | | ### ##???###### ######?????????? | | ###### #### ##???????### ######????????? | | ###### ##### ####?####### ###????????? | | ????## ###### ########### ##????????? | | ????### ####### ##### ### ###???????? | | ????########?## ### ###### ##???????? | | ?????######??### ######## ??????? | | ?????????????###### ###??###### ??? | | ??????????????###### ##????###### #### ?? | | ?????????????????### ##????????#########? | | ??????????????????### ###?????????#####?????? | | ??????????????????### ###???????????????????? | | ???????????????????### ###????????????????????? | | ???????????????????##########????????????????????? | | ????????????????????########?????????????????????? | | ?????????????????????????????????????????????????? | | ?????????????????????????????????????????????????? | | | | | | | +----------------------------------------------------+ Best States ------------- Heat Dissipation 72 Energy Generation 12 Energy Capacity 265 Matter Stores 300 Matter Capacity 300 Sight Range 16 Terrain Scan Density 110 Evasion (%) 55 Item Schematics ----------------- None Robot Schematics ------------------ None Fabricated ------------ Nothing Repaired ---------- Aluminum Leg | 34% | -10/Materials Alien Tech Used ----------------- None Achievements -------------- None Challenges ------------ None Game ------ Seed NuclearIntegratedPick Manual? 0 Play Time 00:43:15 Cumulative 59.3 hours Start 2025.09.30 @ 02:12:46 End 2025.10.02 @ 23:51:25 Sessions 3 Manual Loads 0 Difficulty Rogue Special Mode None Game No. 48 Rogue 36 Adventurer 12 Explorer 0 Win Type - Total 1 Types 1/0/0/0/0/0/0/0/0/0 Lore% 21 Gallery% 28 Achievement% 30 Wizard Run 0 Options --------- Layout 0 ASCII 0 Keyboard 0 Movement Numpad Keybinds 0 Fullscreen 2 Font 24/Smallcaps Map View 76x50 Zoom Use 0% Tactical HUD 1 Map Filters NONE Filters NONE Steam 1 RUN: 64739f95-5a0a-4b29-8cbd-d3ad4d9c3a72